[Event "Titled Tuesday Blitz February 15 Early 2022"]
[White "Golubenko, Valentina"]
[Black "Jain Kashish Manoj"]
[WhiteFideId "4501993"]
[BlackFideId "35081098"]
[WhiteElo "2164"]
[BlackElo "1681"]
[Result "0-1"]
[Round "05"]
[TimeControl "180+1"]
[Date "2022.02.15"]
[WhiteClock "0:00:16"]
[BlackClock "0:00:10"]

1. d4 {[%clk 0:03:00]}  Nf6 {[%clk 0:02:52]} 2. g3 {[%clk 0:03:00]}  g6 {[%clk 0:02:52]} 3. Bg2 {[%clk 0:03:01]}  Bg7 {[%clk 0:02:53]} 4. c4 {[%clk 0:03:01]}  O-O {[%clk 0:02:54]} 5. d5 {[%clk 0:03:01]}  c5 {[%clk 0:02:52]} 6. Nc3 {[%clk 0:02:59]}  d6 {[%clk 0:02:49]} 7. Nf3 {[%clk 0:02:59]}  a6 {[%clk 0:02:44]} 8. a4 {[%clk 0:02:55]}  e6 {[%clk 0:02:37]} 9. O-O {[%clk 0:02:55]}  exd5 {[%clk 0:02:37]} 10. cxd5 {[%clk 0:02:56]}  Re8 {[%clk 0:02:28]} 11. Bf4 {[%clk 0:02:55]}  h6 {[%clk 0:02:06]} 12. h4 {[%clk 0:02:46]}  Nh5 {[%clk 0:01:56]} 13. Bd2 {[%clk 0:02:44]}  Nd7 {[%clk 0:01:47]} 14. Rb1 {[%clk 0:02:43]}  Nhf6 {[%clk 0:01:31]} 15. Bf4 {[%clk 0:02:36]}  Nb6 {[%clk 0:01:07]} 16. Qc1 {[%clk 0:02:01]}  Kh7 {[%clk 0:00:30]} 17. e4 {[%clk 0:01:42]}  Nxe4 {[%clk 0:00:20]} 18. Nxe4 {[%clk 0:01:42]}  Rxe4 {[%clk 0:00:20]} 19. Ng5+ {[%clk 0:01:36]}  hxg5 {[%clk 0:00:20]} 20. Bxg5 {[%clk 0:01:35]}  Qe8 {[%clk 0:00:20]} 21. Bxe4 {[%clk 0:01:17]}  Qxe4 {[%clk 0:00:21]} 22. Re1 {[%clk 0:01:06]}  Qxd5 {[%clk 0:00:21]} 23. Rd1 {[%clk 0:01:06]}  Qf3 {[%clk 0:00:21]} 24. Qf4 {[%clk 0:01:05]}  Qxf4 {[%clk 0:00:19]} 25. Bxf4 {[%clk 0:01:05]}  Bf5 {[%clk 0:00:16]} 26. Rbc1 {[%clk 0:01:01]}  Bxb2 {[%clk 0:00:15]} 27. Rxd6 {[%clk 0:00:55]}  Bxc1 {[%clk 0:00:15]} 28. Bxc1 {[%clk 0:00:55]}  Nxa4 {[%clk 0:00:16]} 29. f3 {[%clk 0:00:53]}  Be6 {[%clk 0:00:15]} 30. Be3 {[%clk 0:00:48]}  c4 {[%clk 0:00:15]} 31. g4 {[%clk 0:00:44]}  c3 {[%clk 0:00:13]} 32. Rd1 {[%clk 0:00:35]}  c2 {[%clk 0:00:13]} 33. Rc1 {[%clk 0:00:36]}  Rc8 {[%clk 0:00:12]} 34. Kf2 {[%clk 0:00:32]}  Nb2 {[%clk 0:00:13]} 35. Ke2 {[%clk 0:00:29]}  b5 {[%clk 0:00:12]} 36. Kd2 {[%clk 0:00:26]}  Nc4+ {[%clk 0:00:12]} 37. Kd3 {[%clk 0:00:25]}  Nxe3 {[%clk 0:00:12]} 38. Kxe3 {[%clk 0:00:25]}  b4 {[%clk 0:00:13]} 39. f4 {[%clk 0:00:22]}  Bxg4 {[%clk 0:00:12]} 40. Kd2 {[%clk 0:00:20]}  b3 {[%clk 0:00:12]} 41. Rg1 {[%clk 0:00:18]}  Bd1 {[%clk 0:00:09]} 42. Kc1 {[%clk 0:00:17]}  b2+ {[%clk 0:00:09]} 43. Kxb2 {[%clk 0:00:17]}  c1=Q+ {[%clk 0:00:10]} 44. Ka2 {[%clk 0:00:17]}  Rc2+ {[%clk 0:00:08]} 45. Kb3 {[%clk 0:00:17]}  Rb2+ {[%clk 0:00:09]} 46. Ka3 {[%clk 0:00:16]}  Qa1# {[%clk 0:00:10]} 0-1


[Site "https://www.chess.com"]

[Event "Titled Tuesday Blitz February 15 Early 2022"]
[White "Gurevich, Dmitry"]
[Black "Boraso, Alessio"]
[WhiteFideId "2000407"]
[BlackFideId "848077"]
[WhiteElo "2506"]
[BlackElo "2277"]
[Result "1-0"]
[Round "05"]
[TimeControl "180+1"]
[Date "2022.02.15"]
[WhiteClock "0:01:14"]
[BlackClock "0:00:07"]

1. d4 {[%clk 0:03:00]}  Nf6 {[%clk 0:02:53]} 2. c4 {[%clk 0:02:59]}  g6 {[%clk 0:02:51]} 3. Nc3 {[%clk 0:02:58]}  Bg7 {[%clk 0:02:51]} 4. e4 {[%clk 0:02:58]}  O-O {[%clk 0:02:52]} 5. Nf3 {[%clk 0:02:58]}  d6 {[%clk 0:02:52]} 6. Be2 {[%clk 0:02:59]}  e5 {[%clk 0:02:53]} 7. O-O {[%clk 0:02:57]}  Nc6 {[%clk 0:02:53]} 8. d5 {[%clk 0:02:57]}  Ne7 {[%clk 0:02:54]} 9. Ne1 {[%clk 0:02:58]}  Nd7 {[%clk 0:02:53]} 10. Be3 {[%clk 0:02:58]}  f5 {[%clk 0:02:54]} 11. f3 {[%clk 0:02:59]}  f4 {[%clk 0:02:54]} 12. Bf2 {[%clk 0:02:59]}  g5 {[%clk 0:02:55]} 13. Nb5 {[%clk 0:02:59]}  b6 {[%clk 0:02:46]} 14. b4 {[%clk 0:02:58]}  a6 {[%clk 0:02:45]} 15. Nc3 {[%clk 0:02:58]}  Rf6 {[%clk 0:02:39]} 16. Nd3 {[%clk 0:02:54]}  Rh6 {[%clk 0:02:33]} 17. Be1 {[%clk 0:02:50]}  Qe8 {[%clk 0:02:15]} 18. a4 {[%clk 0:02:47]}  Nf6 {[%clk 0:02:11]} 19. Nf2 {[%clk 0:02:45]}  a5 {[%clk 0:02:01]} 20. bxa5 {[%clk 0:02:44]}  Rxa5 {[%clk 0:02:00]} 21. Nb5 {[%clk 0:02:42]}  Qh5 {[%clk 0:01:23]} 22. h3 {[%clk 0:02:40]}  Ng6 {[%clk 0:01:20]} 23. Ng4 {[%clk 0:02:34]}  Nh4 {[%clk 0:01:06]} 24. Nxh6+ {[%clk 0:02:33]}  Bxh6 {[%clk 0:01:02]} 25. Bxh4 {[%clk 0:02:32]}  gxh4 {[%clk 0:00:45]} 26. Nxc7 {[%clk 0:02:25]}  Bxh3 {[%clk 0:00:38]} 27. gxh3 {[%clk 0:02:22]}  Ra7 {[%clk 0:00:35]} 28. Ne6 {[%clk 0:02:12]}  Rg7+ {[%clk 0:00:35]} 29. Kf2 {[%clk 0:02:03]}  Rg3 {[%clk 0:00:21]} 30. Rg1 {[%clk 0:02:02]}  Qg6 {[%clk 0:00:17]} 31. Qf1 {[%clk 0:01:57]}  Nh5 {[%clk 0:00:17]} 32. a5 {[%clk 0:01:39]}  bxa5 {[%clk 0:00:13]} 33. Rxa5 {[%clk 0:01:37]}  Qe8 {[%clk 0:00:13]} 34. Qa1 {[%clk 0:01:30]}  Rxg1 {[%clk 0:00:07]} 35. Qxg1+ {[%clk 0:01:24]}  Ng3 {[%clk 0:00:07]} 36. Qa1 {[%clk 0:01:23]}  Bf8 {[%clk 0:00:08]} 37. Ra8 {[%clk 0:01:22]}  Nh1+ {[%clk 0:00:07]} 38. Ke1 {[%clk 0:01:14]} 1-0


[Site "https://www.chess.com"]

[Event "Titled Tuesday Blitz February 15 Early 2022"]
[White "Guz, Ari"]
[Black "Shvedova, Alexandra"]
[WhiteFideId "2825759"]
[BlackFideId "54154782"]
[WhiteElo "1913"]
[BlackElo "1920"]
[Result "0-1"]
[Round "05"]
[TimeControl "180+1"]
[Date "2022.02.15"]
[WhiteClock "0:01:33"]
[BlackClock "0:00:49"]

1. b3 {[%clk 0:03:00]}  d5 {[%clk 0:02:59]} 2. Bb2 {[%clk 0:02:59]}  Nf6 {[%clk 0:02:59]} 3. Nf3 {[%clk 0:02:59]}  g6 {[%clk 0:03:00]} 4. g3 {[%clk 0:02:59]}  Bg7 {[%clk 0:03:00]} 5. Bg2 {[%clk 0:02:59]}  O-O {[%clk 0:03:00]} 6. O-O {[%clk 0:03:00]}  c5 {[%clk 0:03:00]} 7. e3 {[%clk 0:03:00]}  Nc6 {[%clk 0:03:00]} 8. d4 {[%clk 0:03:00]}  cxd4 {[%clk 0:02:56]} 9. Nxd4 {[%clk 0:02:58]}  Nxd4 {[%clk 0:02:52]} 10. Bxd4 {[%clk 0:02:58]}  e6 {[%clk 0:02:49]} 11. Nd2 {[%clk 0:02:58]}  Bd7 {[%clk 0:02:49]} 12. c4 {[%clk 0:02:58]}  Bc6 {[%clk 0:02:43]} 13. Rc1 {[%clk 0:02:57]}  Rc8 {[%clk 0:02:41]} 14. Qe2 {[%clk 0:02:57]}  dxc4 {[%clk 0:02:26]} 15. Bxc6 {[%clk 0:02:53]}  Rxc6 {[%clk 0:02:26]} 16. Nxc4 {[%clk 0:02:53]}  b6 {[%clk 0:02:14]} 17. Ne5 {[%clk 0:02:46]}  Rxc1 {[%clk 0:02:11]} 18. Rxc1 {[%clk 0:02:47]}  Qd6 {[%clk 0:01:53]} 19. Nc6 {[%clk 0:02:33]}  Nd5 {[%clk 0:01:22]} 20. Bxg7 {[%clk 0:02:25]}  Kxg7 {[%clk 0:01:23]} 21. Nxa7 {[%clk 0:02:25]}  Qa3 {[%clk 0:01:20]} 22. Qd2 {[%clk 0:01:56]}  Qxa7 {[%clk 0:01:18]} 23. e4 {[%clk 0:01:57]}  Nf6 {[%clk 0:01:17]} 24. Qb2 {[%clk 0:01:55]}  Ra8 {[%clk 0:01:01]} 25. a4 {[%clk 0:01:52]}  Qa5 {[%clk 0:00:51]} 26. Rc6 {[%clk 0:01:33]}  Qe1+ {[%clk 0:00:49]} 0-1


[Site "https://www.chess.com"]

[Event "Titled Tuesday Blitz February 15 Early 2022"]
[White "Hansen, Eric"]
[Black "Matinian, Nikita"]
[WhiteFideId "2606771"]
[BlackFideId "24129100"]
[WhiteElo "2568"]
[BlackElo "2422"]
[Result "1-0"]
[Round "05"]
[TimeControl "180+1"]
[Date "2022.02.15"]
[WhiteClock "0:00:04"]
[BlackClock "0:00:02"]

1. e4 {[%clk 0:03:00]}  e5 {[%clk 0:03:00]} 2. Nf3 {[%clk 0:03:00]}  Nc6 {[%clk 0:03:00]} 3. Bb5 {[%clk 0:03:00]}  a6 {[%clk 0:03:00]} 4. Ba4 {[%clk 0:03:01]}  Nf6 {[%clk 0:03:00]} 5. O-O {[%clk 0:03:01]}  Be7 {[%clk 0:03:01]} 6. Re1 {[%clk 0:03:01]}  b5 {[%clk 0:03:02]} 7. Bb3 {[%clk 0:03:02]}  d6 {[%clk 0:03:02]} 8. c3 {[%clk 0:03:02]}  O-O {[%clk 0:03:03]} 9. h3 {[%clk 0:03:02]}  Nb8 {[%clk 0:03:03]} 10. d4 {[%clk 0:03:03]}  Nbd7 {[%clk 0:03:03]} 11. Nbd2 {[%clk 0:03:03]}  Bb7 {[%clk 0:03:03]} 12. Bc2 {[%clk 0:02:58]}  Re8 {[%clk 0:03:01]} 13. Nf1 {[%clk 0:02:58]}  Bf8 {[%clk 0:03:02]} 14. Ng3 {[%clk 0:02:59]}  g6 {[%clk 0:03:02]} 15. a4 {[%clk 0:02:59]}  Bg7 {[%clk 0:03:02]} 16. Bd3 {[%clk 0:02:52]}  c6 {[%clk 0:03:01]} 17. Bg5 {[%clk 0:02:44]}  h6 {[%clk 0:03:01]} 18. Be3 {[%clk 0:02:44]}  Nf8 {[%clk 0:02:58]} 19. dxe5 {[%clk 0:02:36]}  dxe5 {[%clk 0:02:58]} 20. c4 {[%clk 0:02:37]}  bxa4 {[%clk 0:02:12]} 21. c5 {[%clk 0:02:35]}  N6d7 {[%clk 0:02:10]} 22. Rxa4 {[%clk 0:02:10]}  Ne6 {[%clk 0:01:59]} 23. b4 {[%clk 0:02:10]}  a5 {[%clk 0:01:53]} 24. Qc2 {[%clk 0:02:09]}  axb4 {[%clk 0:01:52]} 25. Rxb4 {[%clk 0:02:08]}  Ba6 {[%clk 0:01:52]} 26. Rd1 {[%clk 0:02:05]}  Bxd3 {[%clk 0:01:49]} 27. Rxd3 {[%clk 0:02:03]}  Ra1+ {[%clk 0:01:48]} 28. Kh2 {[%clk 0:02:03]}  Qc8 {[%clk 0:01:39]} 29. Rc4 {[%clk 0:01:52]}  Nf4 {[%clk 0:01:25]} 30. Rd6 {[%clk 0:01:44]}  Nf6 {[%clk 0:01:19]} 31. Ra4 {[%clk 0:01:42]}  Rxa4 {[%clk 0:00:44]} 32. Qxa4 {[%clk 0:01:41]}  Re6 {[%clk 0:00:43]} 33. Qa5 {[%clk 0:01:30]}  Kh7 {[%clk 0:00:31]} 34. Qa7 {[%clk 0:01:25]}  Qe8 {[%clk 0:00:27]} 35. Qc7 {[%clk 0:01:21]}  Bf8 {[%clk 0:00:22]} 36. Rd8 {[%clk 0:01:20]}  Qe7 {[%clk 0:00:22]} 37. Qb8 {[%clk 0:01:12]}  Bg7 {[%clk 0:00:20]} 38. Rd6 {[%clk 0:01:03]}  N6h5 {[%clk 0:00:18]} 39. Nxh5 {[%clk 0:00:45]}  Nxh5 {[%clk 0:00:19]} 40. Nd2 {[%clk 0:00:39]}  f5 {[%clk 0:00:16]} 41. f3 {[%clk 0:00:36]}  f4 {[%clk 0:00:15]} 42. Bf2 {[%clk 0:00:35]}  Ng3 {[%clk 0:00:15]} 43. Nc4 {[%clk 0:00:34]}  Nf1+ {[%clk 0:00:06]} 44. Kg1 {[%clk 0:00:34]}  Ng3 {[%clk 0:00:07]} 45. Qc8 {[%clk 0:00:11]}  Rf6 {[%clk 0:00:07]} 46. Qxc6 {[%clk 0:00:11]}  Qa7 {[%clk 0:00:07]} 47. Be1 {[%clk 0:00:08]}  Qa1 {[%clk 0:00:07]} 48. Kf2 {[%clk 0:00:05]}  Qa2+ {[%clk 0:00:07]} 49. Nd2 {[%clk 0:00:05]}  Rxd6 {[%clk 0:00:04]} 50. cxd6 {[%clk 0:00:06]}  Qb1 {[%clk 0:00:02]} 51. Qc5 {[%clk 0:00:04]}  Nh1+ {[%clk 0:00:02]} 52. Ke2 {[%clk 0:00:03]}  Ng3+ {[%clk 0:00:02]} 53. Bxg3 {[%clk 0:00:03]}  fxg3 {[%clk 0:00:02]} 54. d7 {[%clk 0:00:04]}  Qh1 {[%clk 0:00:02]} 55. d8=Q {[%clk 0:00:03]}  Qxg2+ {[%clk 0:00:02]} 56. Kd3 {[%clk 0:00:04]}  Qxh3 {[%clk 0:00:01]} 57. Qcd5 {[%clk 0:00:04]}  h5 {[%clk 0:00:01]} 58. Q8g8+ {[%clk 0:00:04]}  Kh6 {[%clk 0:00:02]} 59. Qdf7 {[%clk 0:00:04]} 1-0


[Site "https://www.chess.com"]

[Event "Titled Tuesday Blitz February 15 Early 2022"]
[White "Howell, David W L"]
[Black "Crispin Ferreras, Darvi Abraham"]
[WhiteFideId "410608"]
[BlackFideId "6402771"]
[WhiteElo "2559"]
[BlackElo "2187"]
[Result "1-0"]
[Round "05"]
[TimeControl "180+1"]
[Date "2022.02.15"]
[WhiteClock "0:00:39"]
[BlackClock "0:00:03"]

1. e4 {[%clk 0:02:56]}  c6 {[%clk 0:02:59]} 2. d4 {[%clk 0:02:52]}  d5 {[%clk 0:02:59]} 3. e5 {[%clk 0:02:53]}  Bf5 {[%clk 0:02:56]} 4. h4 {[%clk 0:02:52]}  h6 {[%clk 0:02:55]} 5. g4 {[%clk 0:02:49]}  Bh7 {[%clk 0:02:53]} 6. e6 {[%clk 0:02:43]}  fxe6 {[%clk 0:02:51]} 7. Bd3 {[%clk 0:02:43]}  Bxd3 {[%clk 0:02:46]} 8. Qxd3 {[%clk 0:02:44]}  Nf6 {[%clk 0:02:46]} 9. Nf3 {[%clk 0:02:41]}  Qd6 {[%clk 0:02:40]} 10. Ne5 {[%clk 0:02:37]}  Ne4 {[%clk 0:02:40]} 11. f3 {[%clk 0:02:27]}  Nd7 {[%clk 0:01:55]} 12. fxe4 {[%clk 0:02:26]}  Nxe5 {[%clk 0:01:55]} 13. dxe5 {[%clk 0:02:27]}  Qxe5 {[%clk 0:01:55]} 14. Nc3 {[%clk 0:02:27]}  O-O-O {[%clk 0:01:54]} 15. Bd2 {[%clk 0:02:27]}  dxe4 {[%clk 0:01:50]} 16. Qxe4 {[%clk 0:02:18]}  Qg3+ {[%clk 0:01:50]} 17. Ke2 {[%clk 0:02:18]}  g5 {[%clk 0:01:42]} 18. hxg5 {[%clk 0:01:52]}  Bg7 {[%clk 0:01:25]} 19. Rag1 {[%clk 0:01:46]}  Qd6 {[%clk 0:00:58]} 20. Bf4 {[%clk 0:01:42]}  e5 {[%clk 0:00:56]} 21. Be3 {[%clk 0:01:33]}  hxg5 {[%clk 0:00:51]} 22. Rh5 {[%clk 0:01:30]}  Kb8 {[%clk 0:00:41]} 23. Bxg5 {[%clk 0:01:08]}  Bf6 {[%clk 0:00:35]} 24. Be3 {[%clk 0:01:06]}  Rxh5 {[%clk 0:00:13]} 25. gxh5 {[%clk 0:01:05]}  Qe6 {[%clk 0:00:14]} 26. h6 {[%clk 0:01:04]}  Qh3 {[%clk 0:00:13]} 27. Rh1 {[%clk 0:01:04]}  Qg3 {[%clk 0:00:12]} 28. Qf3 {[%clk 0:01:00]}  Qg6 {[%clk 0:00:11]} 29. Ne4 {[%clk 0:00:59]}  Bh8 {[%clk 0:00:08]} 30. Rg1 {[%clk 0:00:56]}  Qe6 {[%clk 0:00:08]} 31. b3 {[%clk 0:00:57]}  Qd5 {[%clk 0:00:08]} 32. h7 {[%clk 0:00:46]}  Qb5+ {[%clk 0:00:07]} 33. Kf2 {[%clk 0:00:43]}  Qa5 {[%clk 0:00:07]} 34. Rg8 {[%clk 0:00:43]}  Bf6 {[%clk 0:00:02]} 35. Nxf6 {[%clk 0:00:39]}  exf6 {[%clk 0:00:03]} 36. Qxf6 {[%clk 0:00:39]} 1-0


[Site "https://www.chess.com"]

[Event "Titled Tuesday Blitz February 15 Early 2022"]
[White "Ianov, Viktor"]
[Black "Dronavalli, Harika"]
[WhiteFideId "14102730"]
[BlackFideId "5015197"]
[WhiteElo "2565"]
[BlackElo "2720"]
[Result "0-1"]
[Round "05"]
[TimeControl "180+1"]
[Date "2022.02.15"]
[WhiteClock "0:00:58"]
[BlackClock "0:00:47"]

1. Nf3 {[%clk 0:02:59]}  Nf6 {[%clk 0:02:59]} 2. g3 {[%clk 0:02:57]}  b6 {[%clk 0:02:57]} 3. Bg2 {[%clk 0:02:55]}  Bb7 {[%clk 0:02:58]} 4. O-O {[%clk 0:02:52]}  g6 {[%clk 0:02:58]} 5. c4 {[%clk 0:02:52]}  Bg7 {[%clk 0:02:57]} 6. Nc3 {[%clk 0:02:52]}  O-O {[%clk 0:02:51]} 7. d3 {[%clk 0:02:51]}  c5 {[%clk 0:02:50]} 8. e4 {[%clk 0:02:50]}  e6 {[%clk 0:02:49]} 9. Bg5 {[%clk 0:02:47]}  h6 {[%clk 0:02:49]} 10. Bf4 {[%clk 0:02:45]}  d6 {[%clk 0:02:43]} 11. h3 {[%clk 0:02:39]}  Nc6 {[%clk 0:02:42]} 12. Re1 {[%clk 0:02:39]}  Qe7 {[%clk 0:02:34]} 13. Qd2 {[%clk 0:02:38]}  Kh7 {[%clk 0:02:34]} 14. Rad1 {[%clk 0:02:38]}  Rad8 {[%clk 0:02:33]} 15. b3 {[%clk 0:02:35]}  Ng8 {[%clk 0:02:24]} 16. g4 {[%clk 0:02:33]}  Nd4 {[%clk 0:02:13]} 17. Nxd4 {[%clk 0:02:31]}  cxd4 {[%clk 0:02:13]} 18. Nb5 {[%clk 0:02:27]}  e5 {[%clk 0:02:12]} 19. Bg3 {[%clk 0:02:25]}  a6 {[%clk 0:02:10]} 20. Na3 {[%clk 0:02:24]}  f5 {[%clk 0:02:09]} 21. exf5 {[%clk 0:02:17]}  gxf5 {[%clk 0:02:06]} 22. gxf5 {[%clk 0:02:14]}  Bxg2 {[%clk 0:02:05]} 23. Kxg2 {[%clk 0:02:13]}  Qb7+ {[%clk 0:01:57]} 24. Kg1 {[%clk 0:02:09]}  Rxf5 {[%clk 0:01:56]} 25. Nc2 {[%clk 0:02:08]}  Rdf8 {[%clk 0:01:47]} 26. Nb4 {[%clk 0:02:05]}  Ne7 {[%clk 0:01:46]} 27. Qe2 {[%clk 0:02:02]}  a5 {[%clk 0:01:46]} 28. Nc2 {[%clk 0:02:01]}  Ng6 {[%clk 0:01:45]} 29. Qe4 {[%clk 0:02:00]}  Qf7 {[%clk 0:01:45]} 30. Rd2 {[%clk 0:01:54]}  h5 {[%clk 0:01:44]} 31. h4 {[%clk 0:01:51]}  Bh6 {[%clk 0:01:42]} 32. Rde2 {[%clk 0:01:51]}  Bf4 {[%clk 0:01:41]} 33. b4 {[%clk 0:01:44]}  a4 {[%clk 0:01:38]} 34. b5 {[%clk 0:01:42]}  Qg7 {[%clk 0:01:36]} 35. Nb4 {[%clk 0:01:32]}  Nxh4 {[%clk 0:01:33]} 36. Kh2 {[%clk 0:01:21]}  Bxg3+ {[%clk 0:01:31]} 37. fxg3 {[%clk 0:01:21]}  Nf3+ {[%clk 0:01:31]} 38. Kg2 {[%clk 0:01:19]}  Nxe1+ {[%clk 0:01:30]} 39. Rxe1 {[%clk 0:01:18]}  Kh8 {[%clk 0:01:13]} 40. Nd5 {[%clk 0:01:16]}  Rf2+ {[%clk 0:01:08]} 41. Kh3 {[%clk 0:01:16]}  R2f3 {[%clk 0:01:06]} 42. Rg1 {[%clk 0:01:15]}  Qd7+ {[%clk 0:00:58]} 43. Kh2 {[%clk 0:01:13]}  Qg4 {[%clk 0:00:51]} 44. Qxg4 {[%clk 0:01:05]}  hxg4 {[%clk 0:00:51]} 45. Nxb6 {[%clk 0:01:04]}  Rxd3 {[%clk 0:00:51]} 46. Nxa4 {[%clk 0:01:02]}  Rf2+ {[%clk 0:00:46]} 47. Rg2 {[%clk 0:01:01]}  Rdd2 {[%clk 0:00:45]} 48. Rxf2 {[%clk 0:01:00]}  Rxf2+ {[%clk 0:00:46]} 49. Kg1 {[%clk 0:01:00]}  Rxa2 {[%clk 0:00:47]} 50. Nb6 {[%clk 0:00:58]}  d3 {[%clk 0:00:47]} 51. Kf1 {[%clk 0:00:58]}  Ra1+ {[%clk 0:00:47]} 0-1


[Site "https://www.chess.com"]

[Event "Titled Tuesday Blitz February 15 Early 2022"]
[White "Janaszak, Dawid"]
[Black "Jakubowska, Anna"]
[WhiteFideId "1119206"]
[BlackFideId "1121952"]
[WhiteElo "2199"]
[BlackElo "1924"]
[Result "1-0"]
[Round "05"]
[TimeControl "180+1"]
[Date "2022.02.15"]
[WhiteClock "0:00:43"]
[BlackClock "0:00:10"]

1. e4 {[%clk 0:03:00]}  c6 {[%clk 0:02:58]} 2. d4 {[%clk 0:02:59]}  d5 {[%clk 0:02:58]} 3. exd5 {[%clk 0:03:00]}  cxd5 {[%clk 0:02:54]} 4. Bd3 {[%clk 0:03:00]}  Nc6 {[%clk 0:02:54]} 5. c3 {[%clk 0:03:00]}  Nf6 {[%clk 0:02:54]} 6. Bf4 {[%clk 0:03:00]}  g6 {[%clk 0:02:48]} 7. Nf3 {[%clk 0:02:59]}  Bg4 {[%clk 0:02:47]} 8. Nbd2 {[%clk 0:02:57]}  Bg7 {[%clk 0:02:47]} 9. O-O {[%clk 0:02:57]}  O-O {[%clk 0:02:47]} 10. Re1 {[%clk 0:02:53]}  e6 {[%clk 0:02:47]} 11. Qb3 {[%clk 0:02:50]}  Na5 {[%clk 0:02:39]} 12. Qa4 {[%clk 0:02:45]}  Bxf3 {[%clk 0:02:33]} 13. Nxf3 {[%clk 0:02:45]}  a6 {[%clk 0:02:30]} 14. Ne5 {[%clk 0:02:41]}  b5 {[%clk 0:02:28]} 15. Qd1 {[%clk 0:02:39]}  Nc4 {[%clk 0:02:27]} 16. Qe2 {[%clk 0:02:35]}  Nh5 {[%clk 0:02:20]} 17. Bc1 {[%clk 0:02:35]}  Rc8 {[%clk 0:02:01]} 18. h3 {[%clk 0:02:23]}  Qh4 {[%clk 0:01:57]} 19. Nf3 {[%clk 0:02:19]}  Qe7 {[%clk 0:01:52]} 20. a4 {[%clk 0:02:12]}  b4 {[%clk 0:01:47]} 21. b3 {[%clk 0:02:05]}  Na5 {[%clk 0:01:45]} 22. Bxa6 {[%clk 0:01:38]}  Rxc3 {[%clk 0:01:43]} 23. Bg5 {[%clk 0:01:30]}  Qa7 {[%clk 0:01:31]} 24. Bd2 {[%clk 0:01:17]}  Rc2 {[%clk 0:01:25]} 25. Bd3 {[%clk 0:01:13]}  Rb2 {[%clk 0:01:13]} 26. Reb1 {[%clk 0:01:13]}  Rxb3 {[%clk 0:01:04]} 27. Bxb4 {[%clk 0:01:09]}  Rxb1+ {[%clk 0:01:02]} 28. Rxb1 {[%clk 0:01:08]}  Rb8 {[%clk 0:01:01]} 29. Bc5 {[%clk 0:01:02]}  Rxb1+ {[%clk 0:01:00]} 30. Bxb1 {[%clk 0:01:03]}  Qb7 {[%clk 0:00:54]} 31. Qb5 {[%clk 0:01:02]}  Qxb5 {[%clk 0:00:44]} 32. axb5 {[%clk 0:01:03]}  Nf4 {[%clk 0:00:45]} 33. Ne5 {[%clk 0:00:57]}  Bf8 {[%clk 0:00:32]} 34. Nd7 {[%clk 0:00:54]}  Bg7 {[%clk 0:00:16]} 35. Kf1 {[%clk 0:00:54]}  Nb3 {[%clk 0:00:14]} 36. b6 {[%clk 0:00:50]}  Bxd4 {[%clk 0:00:13]} 37. b7 {[%clk 0:00:45]}  Bxc5 {[%clk 0:00:09]} 38. b8=Q+ {[%clk 0:00:44]}  Kg7 {[%clk 0:00:10]} 39. Qxb3 {[%clk 0:00:43]} 1-0


[Site "https://www.chess.com"]

[Event "Titled Tuesday Blitz February 15 Early 2022"]
[White "Jobava, Baadur"]
[Black "Tasev, Dejan"]
[WhiteFideId "13601520"]
[BlackFideId "936618"]
[WhiteElo "2617"]
[BlackElo "2253"]
[Result "1-0"]
[Round "05"]
[TimeControl "180+1"]
[Date "2022.02.15"]
[WhiteClock "0:01:26"]
[BlackClock "0:00:15"]

1. b3 {[%clk 0:03:00]}  Nf6 {[%clk 0:02:58]} 2. Bb2 {[%clk 0:02:59]}  g6 {[%clk 0:02:59]} 3. g3 {[%clk 0:02:59]}  Bg7 {[%clk 0:02:59]} 4. Bg2 {[%clk 0:03:00]}  O-O {[%clk 0:02:59]} 5. c4 {[%clk 0:03:00]}  d6 {[%clk 0:02:58]} 6. d4 {[%clk 0:03:00]}  Nbd7 {[%clk 0:02:58]} 7. Nf3 {[%clk 0:03:00]}  c5 {[%clk 0:02:58]} 8. O-O {[%clk 0:03:00]}  a6 {[%clk 0:02:58]} 9. Nc3 {[%clk 0:03:00]}  Rb8 {[%clk 0:02:58]} 10. a4 {[%clk 0:02:58]}  b6 {[%clk 0:02:58]} 11. e4 {[%clk 0:02:57]}  Bb7 {[%clk 0:02:58]} 12. d5 {[%clk 0:02:57]}  Ne8 {[%clk 0:02:55]} 13. Qc2 {[%clk 0:02:51]}  Nc7 {[%clk 0:02:54]} 14. Nd2 {[%clk 0:02:49]}  b5 {[%clk 0:02:53]} 15. cxb5 {[%clk 0:02:47]}  axb5 {[%clk 0:02:53]} 16. axb5 {[%clk 0:02:48]}  Bc8 {[%clk 0:02:48]} 17. f4 {[%clk 0:02:40]}  Nxb5 {[%clk 0:02:41]} 18. Nxb5 {[%clk 0:02:41]}  Bxb2 {[%clk 0:02:40]} 19. Qxb2 {[%clk 0:02:41]}  Rxb5 {[%clk 0:02:39]} 20. e5 {[%clk 0:02:42]}  Rb4 {[%clk 0:02:31]} 21. Rae1 {[%clk 0:02:39]}  Qb6 {[%clk 0:02:26]} 22. Rf2 {[%clk 0:02:33]}  c4 {[%clk 0:02:17]} 23. Nxc4 {[%clk 0:02:31]}  Qb8 {[%clk 0:02:11]} 24. Na5 {[%clk 0:02:11]}  Bb7 {[%clk 0:02:04]} 25. e6 {[%clk 0:01:57]}  Nc5 {[%clk 0:01:57]} 26. exf7+ {[%clk 0:01:52]}  Rxf7 {[%clk 0:01:57]} 27. Qd2 {[%clk 0:01:43]}  Ba8 {[%clk 0:01:49]} 28. Nc6 {[%clk 0:01:43]}  Bxc6 {[%clk 0:01:48]} 29. dxc6 {[%clk 0:01:44]}  Rb6 {[%clk 0:01:27]} 30. Bd5 {[%clk 0:01:43]}  e6 {[%clk 0:01:23]} 31. Rxe6 {[%clk 0:01:43]}  Nxe6 {[%clk 0:01:23]} 32. Bxe6 {[%clk 0:01:44]}  Kf8 {[%clk 0:01:01]} 33. Bxf7 {[%clk 0:01:42]}  Kxf7 {[%clk 0:01:00]} 34. f5 {[%clk 0:01:42]}  Rxb3 {[%clk 0:00:40]} 35. Qd5+ {[%clk 0:01:35]}  Kg7 {[%clk 0:00:35]} 36. f6+ {[%clk 0:01:31]}  Kh6 {[%clk 0:00:30]} 37. f7 {[%clk 0:01:25]}  Rb1+ {[%clk 0:00:27]} 38. Kg2 {[%clk 0:01:25]}  Qf8 {[%clk 0:00:27]} 39. c7 {[%clk 0:01:25]}  Kg7 {[%clk 0:00:17]} 40. Qd4+ {[%clk 0:01:24]}  Kh6 {[%clk 0:00:15]} 41. c8=Q {[%clk 0:01:25]}  Qxc8 {[%clk 0:00:14]} 42. f8=Q+ {[%clk 0:01:25]}  Qxf8 {[%clk 0:00:15]} 43. Rxf8 {[%clk 0:01:26]} 1-0


[Site "https://www.chess.com"]